bitfinex/quotes_BTCUSD_20240718
["timestamp","ask_amount","ask_price","bid_price","bid_amount"]
[1721293852985,2.50945207,64972.0,64971.0,0.01067407]
[1721293853523,2.49545207,64972.0,64971.0,0.01067407]
[1721293853740,2.49545207,64972.0,64970.0,0.976313]
[1721293853741,1.66407107,64971.0,64970.0,0.976313]
[1721293853881,2.25141949,64971.0,64970.0,0.976313]
[1721293854084,2.55924849,64971.0,64970.0,0.976313]
[1721293854428,2.86707749,64971.0,64970.0,0.976313]
[1721293854637,2.77250595,64971.0,64970.0,0.976313]
[1721293855327,2.78650595,64971.0,64970.0,0.976313]
[1721293855529,2.80050595,64971.0,64970.0,0.976313]
[1721293855732,2.74054103,64971.0,64970.0,0.976313]
[1721293856559,2.64801103,64971.0,64970.0,0.976313]
[1721293857155,2.64801103,64971.0,64970.0,0.290147]
[1721293857321,2.65069338,64971.0,64970.0,0.197798]
[1721293857530,2.90552338,64971.0,64970.0,0.197798]
[1721293857736,0.64675307,64957.0,64956.0,0.00409801]
[1721293857932,1.20902981,64957.0,64956.0,0.00409801]
[1721293858403,2.14879395,64957.0,64956.0,1e-08]
[1721293858545,2.45668895,64957.0,64956.0,1e-08]
[1721293859195,2.63389101,64957.0,64956.0,1e-08]
[1721293859394,2.78824058,64957.0,64956.0,1e-08]
[1721293859729,2.78824045,64957.0,64956.0,1e-08]
[1721293860131,2.80224045,64957.0,64956.0,1e-08]
[1721293860316,2.81624045,64957.0,64956.0,1e-08]
[1721293860538,2.80224045,64957.0,64956.0,1e-08]
[1721293860774,2.78824045,64957.0,64956.0,1e-08]
[1721293860921,2.81624045,64957.0,64956.0,1e-08]
[1721293861715,3.31624045,64957.0,64956.0,1e-08]
[1721293861921,3.31624045,64957.0,64951.0,1e-08]
[1721293861922,0.33947007,64952.0,64951.0,1e-08]
[1721293862132,1.13332231,64952.0,64951.0,1e-08]
[1721293862334,1.23340235,64952.0,64951.0,1e-08]
[1721293863154,2.92856283,64952.0,64951.0,1e-08]
[1721293863356,2.94256283,64952.0,64951.0,1e-08]
[1721293863578,3.20951326,64952.0,64951.0,1e-08]
[1721293863803,3.05394778,64952.0,64951.0,1e-08]
[1721293864171,3.06794778,64952.0,64951.0,1e-08]
[1721293868221,3.20599974,64952.0,64951.0,1e-08]
[1721293868618,3.11232904,64952.0,64951.0,1e-08]
[1721293868891,3.36085466,64952.0,64951.0,1e-08]
[1721293869467,3.2228027,64952.0,64951.0,1e-08]
[1721293870640,3.3026027,64952.0,64951.0,1e-08]
[1721293872029,3.30264159,64952.0,64951.0,1e-08]
[1721293873767,3.30264159,64952.0,64951.0,0.07820001]
[1721293873768,1.91316489,64952.0,64951.0,0.07820001]
[1721293873972,1.65164791,64952.0,64951.0,0.07820001]
[1721293874996,1.65125003,64952.0,64951.0,0.07820001]
[1721293875369,1.75125003,64952.0,64951.0,0.07820001]
[1721293875550,1.9055996,64952.0,64951.0,0.07820001]
[1721293876207,1.94671067,64952.0,64951.0,0.07820001]
[1721293876795,1.9055996,64952.0,64951.0,0.07820001]
[1721293877610,1.90828214,64952.0,64951.0,0.07820001]
[1721293878213,1.90774006,64952.0,64951.0,0.07820001]
[1721293878918,2.25677013,64952.0,64951.0,0.07820001]
[1721293879257,2.25677013,64952.0,64951.0,1e-08]
[1721293879615,2.32571356,64952.0,64951.0,1e-08]
[1721293879843,2.49192332,64952.0,64951.0,1e-08]
[1721293880605,2.79984232,64952.0,64951.0,1e-08]
[1721293881402,2.8917723,64952.0,64951.0,1e-08]
[1721293883240,2.81246893,64952.0,64951.0,1e-08]
[1721293884051,2.50454993,64952.0,64951.0,1e-08]
[1721293884247,2.31927013,64952.0,64951.0,1e-08]
[1721293884470,2.4448296,64952.0,64951.0,1e-08]
[1721293884708,2.35290206,64952.0,64951.0,1e-08]
[1721293885047,2.35290206,64952.0,64948.0,0.07590001]
[1721293885048,1.693631,64949.0,64948.0,0.07590001]
[1721293885251,2.12683588,64949.0,64948.0,0.07580001]
[1721293885797,2.23856341,64949.0,64948.0,0.07560001]
[1721293886001,2.23856341,64949.0,64948.0,0.07530001]
[1721293886177,2.25256341,64949.0,64948.0,0.07530001]
[1721293886559,2.25256341,64949.0,64948.0,0.07490001]
[1721293886773,2.25256341,64949.0,64948.0,0.07470001]
[1721293886975,2.25256341,64949.0,64948.0,0.07460001]
[1721293887461,2.25256341,64949.0,64948.0,0.07440001]
[1721293887462,2.09782092,64949.0,64948.0,0.07440001]
[1721293887664,2.09782092,64949.0,64948.0,0.07430001]
[1721293887665,2.2666246,64949.0,64948.0,0.07430001]
[1721293888215,2.2666246,64949.0,64948.0,0.07420001]
[1721293888419,1.86304321,64949.0,64948.0,0.14050001]
[1721293889830,1.86304321,64949.0,64948.0,0.07420001]
[1721293890668,1.70823953,64949.0,64948.0,0.07420001]
[1721293890864,2.01787121,64949.0,64948.0,0.07420001]
[1721293892322,1.92292952,64949.0,64948.0,0.07420001]
[1721293893301,2.01789247,64949.0,64948.0,0.07420001]
[1721293893908,2.01793062,64949.0,64948.0,0.07420001]
[1721293894322,1.92296001,64949.0,64948.0,0.07420001]
[1721293897223,1.92294483,64949.0,64948.0,0.07420001]
[1721293897648,1.92290789,64949.0,64948.0,0.07420001]
[1721293898080,2.01783728,64949.0,64948.0,0.07420001]
[1721293899121,2.05894835,64949.0,64948.0,0.07420001]
[1721293899331,2.36688135,64949.0,64948.0,0.07420001]
[1721293900457,2.21163317,64949.0,64948.0,0.07420001]
[1721293900650,2.36746298,64949.0,64948.0,0.07420001]
[1721293900851,2.37014573,64949.0,64948.0,0.07420001]
[1721293901090,2.32903466,64949.0,64948.0,0.07420001]
[1721293901648,2.17468509,64949.0,64948.0,0.07420001]
[1721293903721,2.17462265,64949.0,64948.0,0.07420001]
[1721293904478,2.31316422,64949.0,64948.0,0.07420001]
[1721293906349,2.17462265,64949.0,64948.0,0.07420001]
[1721293906724,2.01885528,64949.0,64948.0,0.07420001]
[1721293906953,2.32910093,64949.0,64948.0,0.07420001]
[1721293907146,2.46764086,64949.0,64948.0,0.07420001]
[1721293908363,2.370212,64949.0,64948.0,0.07420001]
[1721293908568,1.077832,64945.0,64944.0,0.086685]
[1721293908790,1.86154247,64945.0,64944.0,0.009185]
[1721293908939,2.32358987,64945.0,64944.0,0.009185]
[1721293909990,2.32438964,64945.0,64944.0,0.009185]
[1721293910569,2.33838964,64945.0,64944.0,0.009185]
[1721293910973,2.35238964,64945.0,64944.0,0.009185]
[1721293911176,2.31127857,64945.0,64944.0,0.009185]
[1721293911447,2.35238964,64945.0,64944.0,0.009185]
[1721293911769,2.31127857,64945.0,64944.0,0.009185]
[1721293911971,2.35238964,64945.0,64944.0,0.009185]
[1721293912573,2.31127857,64945.0,64944.0,0.009185]
[1721293913205,2.31152683,64945.0,64944.0,0.009185]
[1721293916254,2.31216399,64945.0,64944.0,0.009185]
[1721293919205,2.31366795,64945.0,64944.0,0.009185]
[1721293919412,2.31366794,64945.0,64944.0,0.009185]
[1721293921872,2.31421688,64945.0,64944.0,0.009185]
[1721293924100,2.31689966,64945.0,64944.0,0.009185]
[1721293924924,2.15697657,64945.0,64944.0,0.009185]
[1721293925215,2.35824134,64945.0,64944.0,0.009185]
[1721293927664,2.31713027,64945.0,64944.0,0.009185]
[1721293927799,2.31713027,64945.0,64944.0,0.085785]
[1721293928001,2.15697657,64945.0,64944.0,0.085785]
[1721293928266,2.31688212,64945.0,64944.0,0.085785]
[1721293930989,2.00893012,64945.0,64944.0,0.085785]
[1721293931366,2.00900972,64945.0,64944.0,0.085785]
[1721293935177,2.31604889,64945.0,64944.0,0.009185]
[1721293937540,2.31624969,64945.0,64944.0,0.009185]
[1721293940744,2.15697657,64945.0,64944.0,0.009185]
[1721293940961,2.31454679,64945.0,64944.0,0.009185]
[1721293943907,2.15697657,64945.0,64944.0,0.009185]
[1721293944123,2.31468106,64945.0,64944.0,0.009185]
[1721293945126,2.16033149,64945.0,64944.0,0.009185]
[1721293946549,2.16033149,64945.0,64944.0,0.152585]
[1721293946769,1.85237949,64945.0,64944.0,0.152585]
[1721293946995,1.694675,64945.0,64944.0,0.152585]
[1721293947237,1.85344218,64945.0,64944.0,0.152585]
[1721293947488,1.8507594,64945.0,64944.0,0.152585]
[1721293948044,1.5428074,64945.0,64944.0,0.152585]
[1721293948387,1.60051304,64945.0,64944.0,0.152585]
[1721293948587,1.44616347,64945.0,64944.0,0.152585]
[1721293950062,1.44616347,64945.0,64944.0,0.16147393]
[1721293950063,1.38404022,64945.0,64944.0,0.16147393]
[1721293950233,1.44686115,64945.0,64944.0,0.152585]
[1721293950435,1.44954349,64945.0,64944.0,0.152585]
[1721293952053,0.98720975,64945.0,64944.0,0.16147393]
[1721293953211,0.92438882,64945.0,64944.0,0.16147393]
[1721293953615,0.98719967,64945.0,64944.0,0.16147393]
[1721293953857,0.98719967,64945.0,64944.0,0.152585]
[1721293956365,1.10267428,64945.0,64944.0,0.152585]
[1721293956558,1.10246565,64945.0,64944.0,0.152585]
[1721293956986,1.10249544,64945.0,64944.0,0.152585]
[1721293959286,1.5531818,64945.0,64944.0,0.152585]
[1721293959674,1.49052153,64945.0,64944.0,0.152585]
[1721293959926,1.70758162,64945.0,64944.0,0.152585]
[1721293960131,1.96668727,64945.0,64944.0,0.009185]
[1721293960559,2.0637255,64945.0,64944.0,0.009185]
[1721293960801,1.96668727,64945.0,64944.0,0.009185]
[1721293962416,1.90008727,64945.0,64944.0,0.009185]
[1721293962588,1.90091727,64945.0,64944.0,0.009185]
[1721293962798,1.90005934,64945.0,64944.0,0.009185]
[1721293963004,1.90005939,64945.0,64944.0,0.009185]
[1721293963175,1.44937303,64945.0,64944.0,0.086385]
[1721293964901,1.38755256,64945.0,64944.0,0.086385]
[1721293965108,1.44961598,64945.0,64944.0,0.086385]
[1721293965920,1.38755256,64945.0,64944.0,0.086385]
[1721293966120,1.5117791,64945.0,64944.0,0.086385]
[1721293967734,1.66612867,64945.0,64944.0,0.086385]
[1721293968278,1.5117791,64945.0,64944.0,0.086385]
[1721293969013,1.44966583,64945.0,64944.0,0.086385]
[1721293969236,1.51238761,64945.0,64944.0,0.086385]
[1721293970901,1.50970527,64945.0,64944.0,0.086385]
[1721293971682,1.50978167,64945.0,64944.0,0.086385]
[1721293972239,2.03321187,64945.0,64944.0,0.009185]
[1721293972445,2.13043026,64945.0,64944.0,0.009185]
[1721293973199,1.82247826,64945.0,64944.0,0.009185]
[1721293973560,2.13043026,64945.0,64944.0,0.009185]
[1721293973791,2.03589463,64945.0,64944.0,0.009185]
[1721293975729,2.13311345,64945.0,64944.0,0.009185]
[1721293976058,1.60961188,64945.0,64944.0,0.091585]
[1721293976671,1.91756388,64945.0,64944.0,0.091585]
[1721293976988,1.60961188,64945.0,64944.0,0.091585]
[1721293977517,1.91756388,64945.0,64944.0,0.091585]
[1721293978535,1.75761825,64945.0,64944.0,0.091585]
[1721293978726,2.07192638,64945.0,64944.0,0.091585]
[1721293979354,1.91196782,64945.0,64944.0,0.091585]
[1721293979550,2.07197796,64945.0,64944.0,0.091585]
[1721293980390,1.91762839,64945.0,64944.0,0.091585]
[1721293981146,1.91766984,64945.0,64944.0,0.091585]
[1721293981372,2.0149388,64945.0,64944.0,0.091585]
[1721293982642,2.01493052,64945.0,64944.0,0.091585]
[1721293984307,2.01490725,64945.0,64944.0,0.091585]
[1721293985146,1.70695525,64945.0,64944.0,0.10047393]
[1721293985344,1.60970168,64945.0,64944.0,0.16187393]
[1721293985752,1.45031945,64945.0,64944.0,0.16187393]
[1721293985972,1.51961125,64945.0,64944.0,0.16187393]
[1721293986197,1.36522951,64945.0,64944.0,0.16187393]
[1721293986331,1.29593771,64945.0,64944.0,0.16187393]
[1721293987334,1.29539275,64945.0,64944.0,0.16187393]
[1721293987540,1.36468455,64945.0,64944.0,0.152985]
[1721293987740,1.36468455,64945.0,64944.0,0.16187393]
[1721293987937,1.29539275,64945.0,64944.0,0.16187393]
[1721293988430,1.29539275,64945.0,64944.0,0.152985]
[1721293988636,1.29539275,64945.0,64944.0,0.16187393]
[1721293989523,1.36467902,64945.0,64944.0,0.16187393]
[1721293989814,1.29539275,64945.0,64944.0,0.16187393]
[1721293990272,1.29539275,64945.0,64944.0,0.10047393]
[1721293992382,1.38778032,64945.0,64944.0,0.10047393]
[1721293992650,1.29539275,64945.0,64944.0,0.10047393]
[1721293993257,0.98744075,64945.0,64944.0,0.10047393]
[1721293993658,0.92521924,64945.0,64944.0,0.10047393]
[1721293993859,0.98745219,64945.0,64944.0,0.10047393]
[1721293995474,1.0567432,64945.0,64944.0,0.10047393]
[1721293995722,1.05406044,64945.0,64944.0,0.10047393]
[1721293996101,0.98476943,64945.0,64944.0,0.10047393]
[1721293996538,1.05405805,64945.0,64944.0,0.10047393]
[1721293996938,0.9918251,64945.0,64944.0,0.10047393]
[1721293997138,1.05397497,64945.0,64944.0,0.10047393]
[1721293998156,1.05397497,64945.0,64944.0,0.091585]
[1721293998359,1.75995449,64945.0,64944.0,0.009185]
[1721293998609,1.71136367,64945.0,64944.0,0.009185]
[1721293999007,2.25458594,64945.0,64944.0,0.009185]
[1721293999786,2.1160087,64945.0,64944.0,0.009185]
[1721294000114,2.25327543,64945.0,64944.0,0.009185]
[1721294000266,2.11469069,64945.0,64944.0,0.009185]
[1721294001453,2.11514661,64945.0,64944.0,0.009185]
[1721294002128,2.11514661,64945.0,64944.0,0.00316916]
[1721294003125,2.11507423,64945.0,64944.0,0.00316916]
[1721294003491,2.19277423,64945.0,64944.0,0.00316916]
[1721294004129,2.65661554,64945.0,64944.0,0.00316916]
[1721294004593,2.50072623,64945.0,64944.0,0.00316916]
[1721294004972,2.65661554,64945.0,64944.0,0.00316916]
[1721294005325,2.50072623,64945.0,64944.0,0.00316916]
[1721294006257,2.49964872,64945.0,64944.0,0.00316916]
[1721294006662,2.3428178,64945.0,64944.0,0.00316916]
[1721294006845,2.49964874,64945.0,64944.0,0.00316916]
[1721294007041,1.42691707,64944.0,64943.0,1.6e-07]
[1721294007243,1.14538207,64939.0,64938.0,1.6e-07]
[1721294007446,2.50462904,64939.0,64938.0,1.6e-07]
[1721294007993,3.12059104,64939.0,64938.0,1.6e-07]
[1721294008609,3.37543104,64939.0,64938.0,1.6e-07]
[1721294009366,2.54320207,64932.0,64931.0,1.6e-07]
[1721294009529,3.05995737,64932.0,64931.0,1.6e-07]
[1721294009730,3.12085985,64932.0,64931.0,1.6e-07]
[1721294010732,3.13485985,64932.0,64931.0,1.6e-07]
[1721294011069,3.12085985,64932.0,64931.0,1.6e-07]
[1721294011272,3.31707401,64932.0,64931.0,1.6e-07]
[1721294012084,3.33107401,64932.0,64931.0,1.6e-07]
[1721294012505,3.33139692,64932.0,64931.0,1.6e-07]
[1721294012680,3.34539692,64932.0,64931.0,1.6e-07]
[1721294013471,3.48356419,64932.0,64931.0,1.6e-07]
[1721294013671,3.43407169,64932.0,64931.0,1.6e-07]
[1721294014442,3.29590442,64932.0,64931.0,1.6e-07]
[1721294015585,3.13918612,64932.0,64931.0,1.6e-07]
[1721294015783,3.2967158,64932.0,64931.0,1.6e-07]
[1721294016625,3.6010483,64932.0,64931.0,1.6e-07]
[1721294017263,3.61712744,64932.0,64931.0,1.6e-07]
[1721294017592,3.60312744,64932.0,64931.0,1.6e-07]
[1721294018067,3.58912744,64932.0,64931.0,1.6e-07]
[1721294018242,3.66063208,64932.0,64931.0,1.6e-07]
[1721294018831,3.61800451,64932.0,64931.0,1.6e-07]
[1721294019446,3.56851201,64932.0,64931.0,1.6e-07]
[1721294021879,3.41278924,64932.0,64931.0,1.6e-07]
[1721294022078,3.57027453,64932.0,64931.0,1.6e-07]
[1721294022554,3.7093765,64932.0,64931.0,1.6e-07]
[1721294022909,3.758869,64932.0,64931.0,1.6e-07]
[1721294024399,3.64392209,64932.0,64931.0,1.6e-07]
[1721294024690,3.758869,64932.0,64931.0,1.6e-07]
[1721294025230,3.66249801,64932.0,64931.0,1.6e-07]
[1721294025435,3.7582137,64932.0,64931.0,1.6e-07]
[1721294025690,3.64328684,64932.0,64931.0,1.6e-07]
[1721294027471,3.73614158,64932.0,64931.0,1.6e-07]
[1721294028302,3.57920576,64932.0,64931.0,1.6e-07]
[1721294028524,3.73611987,64932.0,64931.0,1.6e-07]
[1721294028747,3.64420034,64932.0,64931.0,1.6e-07]
[1721294029517,3.71313592,64932.0,64931.0,1.6e-07]
[1721294029759,2.98810783,64932.0,64931.0,1.6e-07]
[1721294029921,2.29421825,64932.0,64931.0,1.6e-07]
[1721294030123,1.386148,64928.0,64927.0,0.07703608]
[1721294030367,1.72578252,64928.0,64927.0,0.07703608]
[1721294030550,1.82165401,64928.0,64927.0,0.07703608]
[1721294031419,1.83565401,64928.0,64927.0,0.07703608]
[1721294031629,1.8501081,64928.0,64927.0,0.07703608]
[1721294032076,2.00445767,64928.0,64927.0,0.07703608]
[1721294032225,2.04556874,64928.0,64927.0,0.07703608]
[1721294034835,2.04485081,64928.0,64927.0,0.07703608]
[1721294035359,2.00373974,64928.0,64927.0,0.07703608]
[1721294035971,2.04485081,64928.0,64927.0,0.07703608]
[1721294036120,2.35288381,64928.0,64927.0,0.07703608]
[1721294037825,2.35322809,64928.0,64927.0,0.07703608]
[1721294039670,2.35334454,64928.0,64927.0,0.07703608]
[1721294040071,0.04111107,64927.0,64923.0,0.0821]
[1721294040272,0.462078,64924.0,64923.0,0.0821]
[1721294040504,1.8219369,64924.0,64923.0,0.0821]
[1721294040859,1.82198155,64924.0,64923.0,0.0821]
[1721294041551,1.83598155,64924.0,64923.0,0.0821]
[1721294042194,1.83866534,64924.0,64923.0,0.0821]
[1721294042317,2.00433112,64924.0,64923.0,0.0821]
[1721294042880,1.99033112,64924.0,64923.0,0.0821]
[1721294043021,2.00433112,64924.0,64923.0,0.0821]
[1721294043521,2.00433112,64924.0,64917.0,0.0621]
[1721294043522,0.15404,64918.0,64917.0,0.0621]
[1721294043732,0.15404,64918.0,64916.0,0.009185]
[1721294043733,0.154042,64917.0,64916.0,0.009185]
[1721294043927,1.4181378,64917.0,64916.0,0.086885]
[1721294044215,1.86332453,64917.0,64916.0,0.086885]
[1721294044711,1.82221346,64917.0,64916.0,0.086885]
[1721294044884,1.97924698,64917.0,64916.0,0.086885]
[1721294045255,1.82489741,64917.0,64916.0,0.152585]
[1721294045454,1.72890675,64917.0,64916.0,0.152585]
[1721294046469,1.74290675,64917.0,64916.0,0.152585]
[1721294046664,1.69552834,64917.0,64916.0,0.152585]
[1721294046881,1.72931932,64917.0,64916.0,0.152585]
[1721294047299,1.89766889,64917.0,64916.0,0.152585]
[1721294047683,1.88366889,64917.0,64916.0,0.152585]
[1721294048081,1.89766889,64917.0,64916.0,0.152585]
[1721294048493,1.91166889,64917.0,64916.0,0.152585]
[1721294049040,1.89766889,64917.0,64916.0,0.152585]
[1721294049248,1.91166889,64917.0,64916.0,0.152585]
[1721294049863,1.82187791,64917.0,64916.0,0.152585]
[1721294050045,1.9116205,64917.0,64916.0,0.152585]
[1721294050440,2.02708527,64917.0,64916.0,0.152585]
[1721294050837,1.8727357,64917.0,64916.0,0.152585]
[1721294051241,1.75727093,64917.0,64916.0,0.152585]
[1721294053085,1.69552834,64917.0,64916.0,0.152585]
[1721294053325,1.75735235,64917.0,64916.0,0.152585]
[1721294056277,1.75708857,64917.0,64916.0,0.152585]
[1721294057932,1.91143814,64917.0,64916.0,0.152585]
[1721294058996,1.82338857,64917.0,64916.0,0.009185]
[1721294059201,1.75708857,64917.0,64916.0,0.009185]
[1721294059577,1.75702946,64917.0,64916.0,0.009185]
[1721294059887,1.75702946,64917.0,64916.0,0.089685]
[1721294061829,1.7569601,64917.0,64916.0,0.089685]
[1721294062757,1.75655755,64917.0,64916.0,0.089685]
[1721294065916,1.75662748,64917.0,64916.0,0.089685]
[1721294068508,1.85232356,64917.0,64916.0,0.089685]
[1721294069216,1.85231594,64917.0,64916.0,0.089685]
[1721294070399,2.00666551,64917.0,64916.0,0.089685]
[1721294070898,2.00398156,64917.0,64916.0,0.089685]
[1721294071330,2.14273789,64917.0,64916.0,0.009185]
[1721294072315,2.14135939,64917.0,64916.0,0.009185]
[1721294073739,2.14404329,64917.0,64916.0,0.009185]
[1721294073957,1.98969372,64917.0,64916.0,0.009185]
[1721294075356,1.69552829,64917.0,64916.0,0.009185]
[1721294075556,1.98945518,64917.0,64916.0,0.009185]
[1721294076099,1.98945518,64917.0,64916.0,0.089785]
[1721294078642,1.99024983,64917.0,64916.0,0.089785]
[1721294079286,2.12376845,64917.0,64916.0,0.089785]
[1721294079485,1.99024983,64917.0,64916.0,0.089785]
[1721294081761,1.69552829,64917.0,64916.0,0.089785]
[1721294081967,1.99018677,64917.0,64916.0,0.089785]
[1721294083112,1.85141231,64917.0,64916.0,0.089785]
[1721294083946,1.75616802,64917.0,64916.0,0.089785]
[1721294084928,1.75596129,64917.0,64916.0,0.089785]
[1721294086260,1.88925793,64917.0,64916.0,0.089785]
[1721294088158,1.82882493,64917.0,64916.0,0.089785]
[1721294088370,1.88919287,64917.0,64916.0,0.089785]
[1721294089541,2.12285942,64917.0,64916.0,0.089785]
[1721294090100,2.19295942,64917.0,64916.0,0.089785]
[1721294091442,2.13257187,64917.0,64916.0,0.089785]
[1721294091645,2.19280049,64917.0,64916.0,0.089785]
[1721294092464,2.05950385,64917.0,64916.0,0.089785]
[1721294093337,2.0594826,64917.0,64916.0,0.089785]
[1721294093566,2.0594826,64917.0,64916.0,0.009185]
[1721294094160,1.91800362,64917.0,64916.0,0.009185]
[1721294094328,2.34499969,64917.0,64916.0,0.009185]
[1721294094550,2.41039003,64917.0,64916.0,0.009185]
[1721294094756,2.71965862,64917.0,64916.0,0.009185]
[1721294095911,3.21965862,64917.0,64916.0,0.009185]
[1721294097057,3.22234234,64917.0,64916.0,0.009185]
[1721294097292,3.06617568,64917.0,64916.0,0.009185]
[1721294097709,3.22226498,64917.0,64916.0,0.009185]
[1721294097881,3.22112791,64917.0,64916.0,0.009185]
[1721294098256,3.10991684,64917.0,64916.0,0.009185]
[1721294098463,3.22112791,64917.0,64916.0,0.009185]
[1721294098661,3.18001684,64917.0,64916.0,0.009185]
[1721294099204,3.22112791,64917.0,64916.0,0.009185]
[1721294099325,3.06503861,64917.0,64916.0,0.009185]
[1721294099942,3.06660533,64917.0,64916.0,0.009185]
[1721294100802,0.54111107,64907.0,64906.0,0.009185]
[1721294100955,0.19517907,64906.0,64905.0,1e-06]
[1721294101161,1.64362097,64906.0,64905.0,1e-06]
[1721294101359,2.41424454,64906.0,64905.0,1e-06]
[1721294101560,1.078798,64887.0,64886.0,0.009185]
[1721294101757,2.33699136,64887.0,64886.0,0.009185]
[1721294101979,2.19834773,64887.0,64886.0,0.009185]
[1721294102210,2.19834773,64887.0,64879.0,0.009185]
[1721294102211,1.078913,64880.0,64879.0,0.009185]
[1721294102442,2.2528783,64880.0,64879.0,0.009185]
[1721294102758,2.33699543,64880.0,64879.0,0.009185]
[1721294102899,2.19852873,64880.0,64879.0,0.009185]
[1721294103297,2.19987535,64880.0,64879.0,0.009185]
[1721294103566,2.11862494,64880.0,64879.0,0.009185]
[1721294104152,2.63713701,64880.0,64879.0,0.009185]
[1721294104322,2.48322558,64880.0,64879.0,0.009185]
[1721294104527,2.56474584,64880.0,64879.0,0.009185]
[1721294105133,2.46922558,64880.0,64879.0,0.009185]
[1721294105364,2.44211451,64880.0,64879.0,0.009185]
[1721294105514,2.42811451,64880.0,64879.0,0.009185]
[1721294105710,2.41411451,64880.0,64879.0,0.009185]
[1721294106152,2.42811451,64880.0,64879.0,0.009185]
[1721294106475,2.49698883,64880.0,64879.0,0.009185]
[1721294106615,2.48298883,64880.0,64879.0,0.009185]
[1721294106816,2.53809983,64880.0,64879.0,0.009185]
[1721294107084,2.55209983,64880.0,64879.0,0.009185]
[1721294107226,2.48355292,64880.0,64879.0,0.009185]
[1721294107617,2.44244185,64880.0,64879.0,0.009185]
[1721294108385,2.52264706,64880.0,64879.0,0.009185]
[1721294108733,2.48153599,64880.0,64879.0,0.009185]
[1721294109136,2.49553599,64880.0,64879.0,0.009185]
[1721294109364,2.49575957,64880.0,64879.0,0.009185]
[1721294109563,2.32604478,64880.0,64879.0,0.009185]
[1721294109989,2.34212392,64880.0,64879.0,0.009185]
[1721294110766,2.28094545,64880.0,64879.0,0.009185]
[1721294111124,2.34259484,64880.0,64879.0,0.009185]
[1721294111761,2.41976963,64880.0,64879.0,0.009185]
[1721294112372,2.39923131,64880.0,64879.0,0.009185]
[1721294112642,2.46176212,64880.0,64879.0,0.009185]
[1721294114092,3.02486312,64880.0,64879.0,0.009185]
[1721294114903,3.02486312,64880.0,64879.0,1e-06]
[1721294115086,3.02486312,64880.0,64873.0,1e-06]
[1721294115087,2.94432907,64874.0,64873.0,1e-06]
[1721294115288,3.37806328,64874.0,64873.0,1e-06]
[1721294115489,3.47806328,64874.0,64873.0,1e-06]
[1721294115700,3.47763385,64874.0,64873.0,1e-06]
[1721294116519,3.49163385,64874.0,64873.0,1e-06]
[1721294118239,2.23688707,64867.0,64866.0,0.00872265]
[1721294118437,2.66686881,64867.0,64866.0,0.00872265]
[1721294119014,2.66955484,64867.0,64866.0,0.00872265]
[1721294119638,2.64244377,64867.0,64866.0,0.00872265]
[1721294120075,2.65644377,64867.0,64866.0,0.00872265]
[1721294120280,2.87376986,64867.0,64866.0,0.00872265]
[1721294122415,2.37376986,64867.0,64866.0,0.00872265]
[1721294123646,1.73549729,64867.0,64866.0,0.08492265]
[1721294123838,1.67252077,64867.0,64866.0,0.08492265]
[1721294124411,1.7365814,64867.0,64866.0,0.08492265]
[1721294124576,2.0449044,64867.0,64866.0,0.08492265]
[1721294124790,1.73735036,64867.0,64866.0,0.08492265]
[1721294125027,1.89169993,64867.0,64866.0,0.08492265]
[1721294125235,2.20002293,64867.0,64866.0,0.00872265]
[1721294125442,2.305534,64867.0,64866.0,0.00872265]
[1721294125640,2.44002293,64867.0,64866.0,0.00872265]
[1721294126889,2.881997,64867.0,64866.0,0.00872265]
[1721294127071,2.84088593,64867.0,64866.0,0.00872265]
[1721294127719,2.53256293,64867.0,64866.0,0.00872265]
[1721294128051,2.83419439,64867.0,64866.0,6.5e-07]
[1721294128184,2.91109439,64867.0,64866.0,6.5e-07]
[1721294128395,2.49203207,64863.0,64862.0,6.5e-07]
[1721294128578,3.52584748,64863.0,64862.0,6.5e-07]
[1721294128797,3.62584748,64863.0,64862.0,6.5e-07]
[1721294128998,3.93418948,64863.0,64862.0,6.5e-07]
[1721294129657,3.96218948,64863.0,64862.0,6.5e-07]
[1721294129862,4.01357783,64863.0,64862.0,6.5e-07]
[1721294130260,1.73727807,64852.0,64851.0,0.009185]
[1721294130468,2.63377145,64852.0,64851.0,0.009185]
[1721294130794,2.6851598,64852.0,64851.0,0.009185]
[1721294130948,2.99498046,64852.0,64851.0,0.009185]
[1721294131547,3.15748046,64852.0,64851.0,0.009185]
[1721294131739,3.10609211,64852.0,64851.0,0.009185]
[1721294132299,3.18189211,64852.0,64851.0,0.009185]
[1721294132512,3.19589211,64852.0,64851.0,0.009185]
[1721294132733,3.19589211,64852.0,64842.0,0.0757]
[1721294132734,1.696403,64843.0,64842.0,0.0757]
[1721294132905,1.696403,64843.0,64814.0,0.163483]
[1721294132906,0.15423,64838.0,64837.0,0.0784]
[1721294133108,1.09048235,64838.0,64837.0,0.0784]
[1721294133405,1.39894335,64838.0,64837.0,0.0784]
[1721294133816,1.70740435,64838.0,64837.0,0.0784]
[1721294133969,1.86214653,64838.0,64837.0,0.0784]
[1721294134966,1.87614653,64838.0,64837.0,0.0784]
[1721294135450,1.86214653,64838.0,64837.0,0.0784]
[1721294135824,1.87614653,64838.0,64837.0,0.0784]
[1721294137066,1.87614653,64838.0,64830.0,0.0662]
[1721294137067,1.388223,64831.0,64830.0,0.0662]
[1721294137271,1.64260474,64831.0,64830.0,0.0662]
[1721294137425,1.64260474,64831.0,64830.0,0.1428]
[1721294138352,1.65660474,64831.0,64830.0,0.14233649]
[1721294139352,1.35079761,64831.0,64830.0,0.15122542]
[1721294139935,1.04230361,64831.0,64830.0,0.15122542]
[1721294140193,1.04230361,64831.0,64830.0,0.17422542]
[1721294141420,0.11668687,64831.0,64830.0,0.17422542]
[1721294141763,0.01668687,64831.0,64830.0,0.18489697]
[1721294141990,0.17093387,64831.0,64830.0,0.18489697]
[1721294142305,0.01668687,64831.0,64830.0,0.18489697]
[1721294142552,0.01668687,64831.0,64830.0,0.95922858]
[1721294143570,0.154229,64839.0,64838.0,0.00888893]
[1721294143804,0.04983224,64843.0,64842.0,0.00888893]
[1721294144001,0.308343,64863.0,64842.0,0.00888893]
[1721294144002,0.308389,64853.0,64848.0,0.00888893]
[1721294144201,0.308389,64853.0,64848.0,0.14508893]
[1721294144359,0.46327926,64873.0,64848.0,0.14508893]
[1721294144360,0.83401338,64855.0,64848.0,0.93912093]
[1721294144538,0.04991338,64855.0,64854.0,0.47146493]
[1721294144741,0.04991338,64855.0,64854.0,0.60766493]
[1721294144947,0.308352,64861.0,64860.0,0.00888893]
[1721294145138,0.308352,64861.0,64860.0,0.09128893]
[1721294145139,0.462527,64861.0,64860.0,0.09128893]
[1721294145501,0.462526,64861.0,64860.0,0.11428893]